Cogmind - Beta 17.1 @@@ ROGUE MODE // 2026.08.30 @ 14:41:07 Player: Finn Result: Destroyed by G-34 Mercenary with Small Laser Performance ------------- Evolutions (0) 0 Regions Visited (2) 400 Robots Destroyed (31) 155 Value Destroyed (956) 956 Prototype IDs (2) 40 Alien Tech Used (0) 0 Bonus (0) 0 TOTAL SCORE: 1551 Bonus ------- None Cogmind --------- Core Integrity 0/250 Matter 280/300 Energy 61/100 System Corruption 2% Temperature Hot (294) Movement Treading (160) Location -10/Mines Parts ------- > --- POWER (1) -------- (None) > --- PROPULSION (2) --- Light Treads > --- UTILITY (2) ------ Small Storage Unit Structural Scanner > --- WEAPON (2) ------- Mining Claw > --- INVENTORY (8) ---- Ion Engine Aluminum Leg Sensor Array Signal Interpreter Terrain Scanner Peak State ------------ > --- POWER ------------ Light Nuclear Core > --- PROPULSION ------- Light Treads Light Treads > --- UTILITY ---------- Small Storage Unit Structural Scanner > --- WEAPON ----------- Particle Cannon Assault Rifle > --- INVENTORY -------- Ion Engine Light Treads Aluminum Leg Sensor Array Signal Interpreter Terrain Scanner Datajack Mining Claw [Rating: 10] Favorites ----------- Power Ion Engine Engine Ion Engine Power Core Light Nuclear Core Propulsion Light Treads Treads Light Treads Leg Aluminum Leg Wheel Compact Wheel Utility Small Storage Unit Device Structural Scanner Storage Small Storage Unit Weapon Assault Rifle Energy Gun EM Pulse Gun Energy Cannon Particle Cannon Ballistic Gun Assault Rifle Slashing Weapon Mining Claw Special Melee Weapon Datajack Build | -11 -10 -10 ------- Run | Yrd Mat Min Slots Evolved . | . . . Power . | . . . Propulsion . | . . . Utility . | . . . Weapon . | . . . Parts Attached 15 | 8 5 2 Power 2 | 1 1 . Engine 1 | 1 . . Core 1 | . 1 . Reactor . | . . . Propulsion 6 | 4 1 1 Treads 4 | 2 1 1 Leg 1 | 1 . . Wheel 1 | 1 . . Hover . | . . . Flight . | . . . Utility 2 | 1 1 . Device 1 | . 1 . Storage 1 | 1 . . Processor . | . . . Hackware . | . . . Protection . | . . . Artifact . | . . . Weapon 5 | 2 2 1 Energy Gun 1 | 1 . . Energy Cannon 1 | . 1 . Ballistic Gun 1 | 1 . . Ballistic Cannon . | . . . Launcher . | . . . Special Weapon . | . . . Impact Weapon . | . . . Slashing Weapon 1 | . . 1 Piercing Weapon . | . . . Special Melee Weapon 1 | . 1 . Unidentified Prototypes . | . . . Parts Lost 7 | . 2 5 Power 1 | . . 1 Propulsion 2 | . . 2 Utility . | . . . Weapon 4 | . 2 2 Highest Loss Streak 4 | . 1 4 To Critical Strikes . | . . . Average Backups 7 | 4 7 7 Power . | . . 1 Propulsion 2 | 2 2 2 Utility 2 | . 2 3 Weapon 1 | 1 1 1 Tool/Special . | . . . Unused Backups 8 | . 4 4 Power 1 | . 1 . Propulsion 2 | . 1 1 Utility 3 | . . 3 Weapon 2 | . 2 . Tool/Special . | . . . Average Slot Usage (%) 98 | . 99 85 Engine 7 | . 7 . Core 6 | . 6 14 Treads 26 | . 28 14 Device 13 | . 13 14 Storage 14 | . 14 14 Energy Gun 5 | . 5 . Energy Cannon 8 | . 8 14 Ballistic Gun 10 | . 11 . Special Melee Weapon 3 | . 2 14 Peak Build Rating 10 | 6 10 10 Average Rating 8 | 4 8 8 On Entrance 5 | . 6 10 Avg Prop Armor Cover (%) . | . . . Naked Turns . | . . . Heaviest Build 17 | 14 17 16 Greatest Support 40 | 40 40 20 Greatest Overweight (x) 2 | 2 . . Average Overweight (x) . | . . . Largest Inventory Capacity 8 | 8 8 8 Average Capacity 7 | 6 8 8 Most Carried 8 | 6 8 7 Average Carried 7 | 4 7 6 Final Capacity 8 | 8 8 8 Final Carried 7 | 5 7 5 Class Distribution -------------------- 100% | Mutant Dominant Class ---------------- Mutant | -10/Materials Mutant | -10/Mines Resources | -11 -10 -10 ----------- Run | Yrd Mat Min Matter Collected 618 | 193 425 . Remotely . | . . . Salvage Created 1120 | . 1033 87 Parts 62 | . 59 3 Haulers Intercepted 1 | . 1 . Recyclers Shooed . | . . . Parts Field Recycled . | . . . Retrieved Matter . | . . . Parts Self-Destructed . | . . . Prevented . | . . . Parts Restored . | . . . Kills | -11 -10 -10 ------- Run | Yrd Mat Min Combat Hostiles Destroyed 18 | . 16 2 Guns 13 | . 13 . Cannons 4 | . 2 2 AOE 1 | . 1 . Classes Destroyed 9 | . 9 . Worker 3 | . 3 . Builder 1 | . 1 . Tunneler 2 | . 2 . Hauler 1 | . 1 . Recycler 2 | . 2 . Operator 1 | . 1 . Watcher 3 | . 3 . Swarmer 2 | . 2 . Grunt 16 | . 14 2 Best Kill Streak 3 | . 3 2 Combat Bots Only 2 | . 2 2 Max Kills in Single Turn 1 | . 1 1 Gunslinging . | . . . Exploded 1 | . 1 . Melee . | . . . Uniques/NPCs Destroyed . | . . . Combat | -11 -10 -10 -------- Run | Yrd Mat Min Hostile Shots Fired 107 | . 70 37 Missed 29 | . 23 6 Hits 78 | . 47 31 Projectile 78 | . 47 31 Critical Strikes 2 | . . 2 Damage Taken 1122 | . 700 422 Core 256 | . 93 163 Absorbed by Shields . | . . . Regen/Repaired (Parts) 50 | . 50 . Core Remaining (%) 100 | 100 . . Volleys Fired 147 | . 131 16 Largest 2 | . 2 1 Hottest 88 | . 88 68 Shots Fired 228 | . 212 16 Gun 126 | . 126 . Cannon 102 | . 86 16 Launcher . | . . . Special . | . . . Kinetic 80 | . 80 . Thermal 102 | . 86 16 Explosive . | . . . Electromagnetic 46 | . 46 . Robot Hit Streak 7 | . 7 5 Robot Miss Streak 7 | . 7 1 Penetration Max . | . . . Secondary Targets 2 | . 2 . Max Gunslinging Chain 1 | . 1 . Shots Hit Robots 82 | . 69 13 Core Hits 45 | . 43 2 Critical Kills 1 | . 1 . Critical Parts Destroyed . | . . . Critical Strikes 3 | . 3 . Meltdown 1 | . 1 . Corrupt 2 | . 2 . Melee Attacks 3 | . 1 2 Impact . | . . . Slashing . | . . . Piercing . | . . . Sneak Attacks . | . . . Combat Hostiles . | . . . Follow-up Attacks . | . . . Damage Inflicted 1629 | . 1363 266 Guns 834 | . 834 . Cannons 498 | . 232 266 Explosions 290 | . 290 . Melee . | . . . Ramming 7 | . 7 . Kinetic 388 | . 388 . Thermal 687 | . 421 266 Explosive 101 | . 101 . Electromagnetic 446 | . 446 . Impact . | . . . Slashing . | . . . Piercing . | . . . Highest Corruption 2 | . 2 2 Average Corruption 2 | . 2 2 Corruption Purged . | . . . Corruption Blocked . | . . . Effects 33 | . 27 6 Message Errors 8 | . 7 1 Matter Fused 7 | . 6 1 Heat Flow Errors 6 | . 6 . Energy Discharges 5 | . 4 1 Data Loss (minor) 3 | . 1 2 Data Loss (major) 2 | . 1 1 Misfires 1 | . 1 . Alerts 1 | . 1 . Overload Shots . | . . . Overflow Damage 19 | . 19 . Projectiles . | . . . Explosions 19 | . 19 . Melee . | . . . Knockbacks . | . . . Impact . | . . . Kinetic . | . . . Secondary . | . . . Self-Inflicted Damage 114 | . 114 . Shots 3 | . 3 . Rammed 1 | . 1 . Targets Rammed 1 | . 1 . Kicked . | . . . Crushed . | . . . Highest Temperature 329 | . 307 329 Average Temperature 80 | . 77 110 Received Heat Transfer 519 | . 234 285 Effects 2 | . 2 . Energy Bleed 1 | . 1 . Interference 1 | . 1 . Siege Activations . | . . . Martial Activations . | . . . Shielding Activations . | . . . Robots Disrupted . | . . . Combat Hostiles . | . . . Robots Corrupted . | . . . Combat Hostiles . | . . . Parts Fried . | . . . Impact Corruptions . | . . . Robots Melted 1 | . 1 . Combat Hostiles . | . . . Parts Melted 3 | . 2 1 Heat Transferred 1188 | . 707 481 Parts Sabotaged . | . . . Parts Stolen . | . . . Parts Stripped . | . . . Power Chain Reactions 4 | . 4 . Alert | -11 -10 -10 ------- Run | Yrd Mat Min Maximum Alert Level 2 | . 2 1 Low Security (%) 80 | 100 83 37 Level 1 17 | . 13 62 Level 2 2 | . 2 . Level 3 . | . . . Level 4 . | . . . Level 5 . | . . . High Security . | . . . Max Security . | . . . Peak Influence 430 | . 430 282 Initial 165 | . . 165 Average 103 | . 96 218 Influence Increases 1099 | . 957 142 Destroy 0b10 Robot/C 360 | . 320 40 Destroy 0b10 Robot/NC 65 | . 65 . Destroy Leader 98 | . 88 10 Successful Hack 44 | . 39 5 Disable Machine 360 | . 285 75 Destroy Structure 157 | . 145 12 Lose Combat Pursuer 15 | . 15 . Influence Decreases 972 | . 531 441 Entered New Map 261 | . . 261 Time Decay 641 | . 511 130 Lost Part 70 | . 20 50 Squads Dispatched 4 | . 4 . Investigation 3 | . 3 . Extermination . | . . . Reinforcement 1 | . 1 . Assault . | . . . Garrison . | . . . Intercept . | . . . Searches Triggered . | . . . Construction Impeded . | . . . Haulers Reinforced . | . . . Active Scanning Responses . | . . . Cargo Convoy Interrupts . | . . . Stealth | -11 -10 -10 --------- Run | Yrd Mat Min Distress Signals 2 | . 2 . Communications Jammed . | . . . Distress Signals . | . . . Times Spotted 27 | . 23 4 Peak Tracking Total 3 | . 3 2 Tactical Retreats 1 | . 1 . Traps | -11 -10 -10 ------- Run | Yrd Mat Min Traps Triggered 1 | . 1 . Indirectly . | . . . Trap Hack Attempts . | . . . Triggered . | . . . Disarmed . | . . . Reprogrammed . | . . . Reused . | . . . Traps Extracted . | . . . Installed . | . . . Triggered . | . . . Machines | -11 -10 -10 ---------- Run | Yrd Mat Min Machines Disabled 25 | . 20 5 Max in Single Turn 5 | . 3 5 Machines Repaired . | . . . Machines Dismantled . | . . . Machines Sabotaged . | . . . Overloaded Fab Kills . | . . . Hacking | -11 -10 -10 --------- Run | Yrd Mat Min Machines Accessed 11 | . 10 1 Terminals 8 | . 7 1 Fabricators . | . . . Repair Stations 1 | . 1 . Recycling Units 2 | . 2 . Scanalyzers . | . . . Garrison Access . | . . . Total Hacks 39 | . 37 2 Successful 24 | . 23 1 Failed 15 | . 14 1 Catastrophic 3 | . 3 . Database Lockouts . | . . . Manual . | . . . Terminals 26 | . 24 2 Fabricators . | . . . Repair Stations 7 | . 7 . Recycling Units 6 | . 6 . Scanalyzers . | . . . Garrison Access . | . . . Terminal Hacks 15 | . 14 1 Robot Analysis 1 | . 1 . Prototype ID Bank 1 | . 1 . Branch Access Points 1 | . 1 . Alert Level 1 | . 1 . Locate Traps 3 | . 3 . Hauler Manifests 3 | . 3 . Registered Components 1 | . 1 . Zone Layout 4 | . 3 1 Fabricator Hacks . | . . . Repair Station Hacks 4 | . 4 . Scan Component 2 | . 2 . Repair 2 | . 2 . Recycling Unit Hacks 5 | . 5 . Recycle Component 1 | . 1 . Process 3 | . 3 . Retrieve Components 1 | . 1 . Scanalyzer . | . . . Garrison Access Hacks . | . . . Unauthorized Hacks . | . . . Terminals . | . . . Fabricators . | . . . Repair Stations . | . . . Recycling Units . | . . . Scanalyzers . | . . . Garrison Access . | . . . Data Cores Recovered 1 | . 1 . Used . | . . . Hacking Detections 7 | . 7 . Full Trace Events 5 | . 5 . Feedback Events . | . . . Feedback Blocked . | . . . Robot Schematics Acquired . | . . . Robots Built . | . . . Authchips . | . . . Time . | . . . Total Robot Build Rating . | . . . Part Schematics Acquired . | . . . Parts Built . | . . . Authchips . | . . . Time . | . . . Total Part Build Rating . | . . . Part Studies Acquired . | . . . Parts Repaired 2 | . 2 . Time 79 | . 79 . Parts Recycled 1 | . 1 . Recycled Matter 459 | . 459 . Retrieved Matter . | . . . Retrieved Components . | . . . Parts Scanalyzed . | . . . Part Schematics Acquired . | . . . Parts Damaged . | . . . Bothacking | -11 -10 -10 ------------ Run | Yrd Mat Min Used RIF Installer . | . . . Robots Hacked 1 | . . 1 Non-combat . | . . . Combat 1 | . . 1 Robot Hacks Applied 1 | . . 1 parse_system 1 | . . 1 Relay Couplers Released . | . . . Fabnet Peak Effective % . | . . . Robots Rewired . | . . . Allies Hacked . | . . . Hacks Repelled . | . . . Allies | -11 -10 -10 -------- Run | Yrd Mat Min Total Allies . | . . . Largest Group . | . . . Highest-Rated Group . | . . . Highest-Rated Ally . | . . . Total Orders . | . . . Ally Attacks . | . . . Total Damage . | . . . Kills . | . . . Allies Corrupted . | . . . Allies Melted . | . . . Intel | -11 -10 -10 ------- Run | Yrd Mat Min Active Infowar (turns) 3588 | . 3314 274 Structural 3588 | . 3314 274 Robot Analysis Total 1 | . 1 . Derelict Logs Recovered . | . . . Drone Launches . | . . . Drone Recoveries . | . . . Exploration | -11 -10 -10 ------------- Run | Yrd Mat Min Turns Passed 3678 | 77 3327 274 Spaces Moved 1817 | 46 1623 148 Core 14 | 14 . . Treads 1800 | 29 1623 148 Legs 2 | 2 . . Wheels 1 | 1 . . Hover . | . . . Flight . | . . . Fastest Speed 50 | 50 160 160 Average Speed 159 | 125 160 160 Slowest Speed 160 | 160 160 160 Overloaded Moves . | . . . Propulsion Burnouts . | . . . Robots Hopped . | . . . Potential Cave-ins . | . . . Cave-ins Triggered . | . . . Exploration Rate (%) 46 | 4 99 37 Regions Visited 2 Branch Regions 1 Pre-discovered Areas . | . . . Known Exits Taken 1 | . 1 . Unknown Exits Taken 1 | 1 . . Scrap Searched . | . . . Spaces Dug . | . . . Terrain Destroyed 179 | . 167 12 Melee . | . . . Projectile . | . . . AOE 179 | . 167 12 Terrain Rammed . | . . . Walls Destroyed . | . . . Machines Disabled . | . . . Actions | -11 -10 -10 --------- Run | Yrd Mat Min Total 2376 | 64 2144 168 Wait 366 | . 366 . Move 1815 | 45 1622 148 Hop . | . . . Pick Up 21 | 9 12 . Fast Attach 4 | 4 . . Attach 10 | 4 4 2 Detach . | . . . Swap 2 | . 2 . Drop 7 | 2 5 . Fire 147 | . 131 16 Melee 3 | . 1 2 Ram . | . . . Kick . | . . . Crush 1 | . 1 . Escape Stasis . | . . . Rewire . | . . . Trap . | . . . Miscellaneous . | . . . Route ------- -11/Scrapyard -10/Materials (discovered 5 exits: [*Mat x3] / *Min / [*Sub]) -10/Mines (discovered 1 exit: [*Mat]) History --------- Turn | Location | Event 8 | -11/Scrapyard | Discovered new exit (range 15) 78 | -11/Scrapyard | Entered Materials 234 | -10/Materials | Discovered new exit (range 7) 302 | -10/Materials | Build established: Mutant 549 | -10/Materials | Repaired EM Pulse Gun 608 | -10/Materials | Discovered new exit (range 14) 1159 | -10/Materials | Identified exit to Mines 1256 | -10/Materials | Discovered new exit (range 15) 1474 | -10/Materials | Discovered new exit (range 10) 1612 | -10/Materials | Discovered new exit (range 9) 1926 | -10/Materials | Repaired Corrupted Lgt. Nuclear Core 3405 | -10/Materials | Entered Mines 3650 | -10/Mines | Discovered new exit (range 7) 3652 | -10/Mines | Core integrity fell below 50% 3668 | -10/Mines | Core integrity fell below 20% 3679 | -10/Mines | Destroyed by G-34 Mercenary with Small Laser Last Messages --------------- 03424_ Aluminum Leg melted. 03424_ G-47 Trooper destroyed. 03435_ System corrupted: Component data lost. 03435_ Plasma Injector explodes. 03460_ Connecting with Terminal... >>Layout(Zone) Retrieving Zone 9M layout... Downloaded map data. 03476_ System corrupted: Matter fused (-9). 03503_ System corrupted: Component data lost. 03530_ EWWHRN1HVCVCT81KK9GHR3SP#LFTTF# 03554_ System corrupted: Energy discharge (-36). 03636_ System corrupted: Substantial component data lost. 03650_ EXIT=FOUND 03658_ Critical hit (Burn: +37). 03663_ Lgt. Treads destroyed. 03671_ Datajack destroyed. 03675_ Lgt. Nuclear Core destroyed. 03677_ Particle Cannon destroyed. Map ----- +----------------------------------------------------+ | ?### #####??????????#### ### | | ?### ###########???#### ##?? | | ??## ##########??## ##??### | | ??## #### ###??## ####??### | | ??## ### ##??## ####????? | | ??### ### ####### ##??????? | | ??### ### ####### ##??????? | | ??## ### ##??????? | | ??## ## ##########??????? | | ??### ##########??????? | | ??### ###??????????????? | | ???### ######??????????????? | | ???#### #####???????????????? | | ????#### ###?????????????????? | | ?????#### ###????????????????? | | ??????###### ####???????????????? | | ???????###### ####??????????????? | | ??????????### ### ?????????????? | | ??############ ## ?????????????? | | ??############ # ?????????????? | | ??## ### # ?????????????? | | ??## """ ### ###????????????? | | ??## """ ### ########???????? | | ??## """ u### ###### ???????? | | ??## ### # ???????? | | ??## """g @ ???? | | ??## """ < ???? | | ??## """ g##### ????? | | ??## ###### ????? | | ??## ##??## ?????? | | ??###########???? ?????? | | ??###########???? ?????? | | ????????????????? ??????? | | ????????????????? ??????? | | ?????????????????? ### ???????? | | ?????????????????? #### ???????? | | ??????????????????? ####?????????? | | ??????????????????? ###??????????? | | ????????????????????###???????????? | | ??????????????????????????????????? | | ??????????????????????????????????? | | ??????????????????????????????????? | | ??????????????????????????????????? | | ??????????????????????????????????? | | ??????????????????????????????????? | | ??????????????????????????????????? | | ??????????????????????????????????? | | ??????????????????????????????????? | | | | | +----------------------------------------------------+ Best States ------------- Heat Dissipation 25 Energy Generation 14 Energy Capacity 250 Matter Stores 300 Matter Capacity 300 Sight Range 16 Terrain Scan Density 10 Evasion (%) 50 Recoil Reduction 2 Item Schematics ----------------- None Robot Schematics ------------------ None Fabricated ------------ Nothing Repaired ---------- EM Pulse Gun | 13% | -10/Materials Lgt. Nuclear Core | 78% | -10/Materials | Corrupted Studied --------- None Alien Tech Used ----------------- None Achievements -------------- None Challenges ------------ None Game ------ Seed PartitionTractorMallet Manual? 0 Play Time 00:21:36 Cumulative 22.5 hours Start 2026.08.30 @ 14:21:00 End 2026.08.30 @ 14:41:07 Sessions 1 Manual Loads 0 Difficulty Rogue Special Mode None Game No. 48 Rogue 31 Adventurer 15 Explorer 2 Win Type - Total 0 Types 0/0/0/0/0/0/0/0/0/0 Lore% 23 Gallery% 21 Achievement% 17 Wizard Run 0 Options --------- Layout 1 ASCII 0 Keyboard 0 Movement Mouse Keybinds 0 Fullscreen 1 Font 24/Smallcaps Map View 50x35 Zoom Use 0% Tactical HUD 1 Map Filters NONE Filters NONE Steam 1 RUN: c86b84d3-80dc-4d2f-a72e-a10f875cdac3